[Event "Open International Liffre 2019"]
[Site "Liffre"]
[Date "2019.10.21"]
[Round "4.3"]
[White "Guilleux, Fabien"]
[Black "Sundararajan, Kidambi"]
[Result "1/2-1/2"]
[TimeControl "1h30 + 30s/coup + 30 min /40 Coup"]
[WhiteTitle "IM"]
[BlackTitle "GM"]
[WhiteElo "2433"]
[BlackElo "2422"]

1. d4 {[%clk 01:30:55]} {[%emt 00:00:05]} d5 {[%clk 01:30:34]} {[%emt
00:00:26]} 2. c4 {[%clk 01:31:03]} {[%emt 00:00:22]} c6 {[%clk 01:30:43]}
{[%emt 00:00:22]} 3. Nf3 {[%clk 01:31:08]} {[%emt 00:00:24]} Nf6 {[%clk
01:31:03]} {[%emt 00:00:10]} 4. Nc3 {[%clk 01:31:08]} {[%emt 00:00:30]} dxc4
{[%clk 01:31:14]} {[%emt 00:00:18]} 5. a4 {[%clk 01:31:10]} {[%emt 00:00:29]}
Bf5 {[%clk 01:30:18]} {[%emt 00:01:27]} 6. e3 {[%clk 01:31:02]} {[%emt
00:00:38]} e6 {[%clk 01:29:32]} {[%emt 00:01:16]} 7. Bxc4 {[%clk 01:31:21]}
{[%emt 00:00:10]} Bb4 {[%clk 01:26:57]} {[%emt 00:03:04]} 8. O-O {[%clk
01:30:05]} {[%emt 00:01:48]} O-O {[%clk 01:27:07]} {[%emt 00:00:19]} 9. Qe2
{[%clk 01:25:18]} {[%emt 00:05:16]} Bg4 {[%clk 01:22:03]} {[%emt 00:05:34]} 10.
Rd1 {[%clk 01:19:43]} {[%emt 00:06:06]} Qa5 {[%clk 01:20:28]} {[%emt 00:02:05]}
11. Na2 {[%clk 01:12:51]} {[%emt 00:07:22]} Be7 {[%clk 01:17:53]} {[%emt
00:03:04]} 12. b4 {[%clk 01:12:01]} {[%emt 00:01:21]} Qh5 {[%clk 01:16:50]}
{[%emt 00:01:33]} 13. h3 {[%clk 01:00:34]} {[%emt 00:11:57]} Bxf3 {[%clk
01:14:15]} {[%emt 00:03:04]} 14. Qxf3 {[%clk 00:58:26]} {[%emt 00:02:38]} Qxf3
{[%clk 01:14:37]} {[%emt 00:00:09]} 15. gxf3 {[%clk 00:58:51]} {[%emt
00:00:05]} Nbd7 {[%clk 01:12:20]} {[%emt 00:02:47]} 16. f4 {[%clk 00:54:40]}
{[%emt 00:04:42]} a5 {[%clk 01:08:29]} {[%emt 00:04:21]} 17. Bd2 {[%clk
00:51:56]} {[%emt 00:03:13]} axb4 {[%clk 01:02:41]} {[%emt 00:06:17]} 18. Nxb4
{[%clk 00:52:15]} {[%emt 00:00:12]} Nb6 {[%clk 01:00:08]} {[%emt 00:03:02]} 19.
Bb3 {[%clk 00:51:56]} {[%emt 00:00:49]} Ne4 {[%clk 00:59:51]} {[%emt 00:00:48]}
20. Be1 {[%clk 00:37:34]} {[%emt 00:14:53]} c5 {[%clk 00:53:49]} {[%emt
00:06:32]} 21. f3 {[%clk 00:37:52]} {[%emt 00:00:11]} Nc3 {[%clk 00:41:28]}
{[%emt 00:12:51]} 22. Bxc3 {[%clk 00:37:27]} {[%emt 00:00:55]} cxb4 {[%clk
00:41:51]} {[%emt 00:00:08]} 23. Bd2 {[%clk 00:32:16]} {[%emt 00:05:40]} Rfc8
{[%clk 00:41:15]} {[%emt 00:01:06]} 24. Rdc1 {[%clk 00:26:33]} {[%emt
00:06:14]} Nd5 {[%clk 00:39:07]} {[%emt 00:02:37]} 25. f5 {[%clk 00:25:09]}
{[%emt 00:01:53]} Nc3 {[%clk 00:33:22]} {[%emt 00:06:15]} 26. Bxc3 {[%clk
00:25:07]} {[%emt 00:00:32]} Rxc3 {[%clk 00:33:45]} {[%emt 00:00:08]} 27. Rxc3
{[%clk 00:25:22]} {[%emt 00:00:15]} bxc3 {[%clk 00:34:10]} {[%emt 00:00:05]} 28.
fxe6 {[%clk 00:25:39]} {[%emt 00:00:12]} fxe6 {[%clk 00:34:18]} {[%emt
00:00:23]} 29. Bxe6+ {[%clk 00:25:11]} {[%emt 00:00:58]} Kf8 {[%clk 00:34:22]}
{[%emt 00:00:26]} 30. Bd5 {[%clk 00:21:21]} {[%emt 00:04:19]} Ra7 {[%clk
00:26:08]} {[%emt 00:08:44]} 31. Rc1 {[%clk 00:17:35]} {[%emt 00:04:16]} Bb4
{[%clk 00:25:32]} {[%emt 00:01:07]} 32. Bb3 {[%clk 00:16:35]} {[%emt 00:01:30]}
Ra6 {[%clk 00:24:37]} {[%emt 00:01:25]} 33. Kf2 {[%clk 00:15:15]} {[%emt
00:01:50]} Rh6 {[%clk 00:23:32]} {[%emt 00:01:34]} 34. Rh1 {[%clk 00:14:25]}
{[%emt 00:01:20]} Ba5 {[%clk 00:14:16]} {[%emt 00:09:47]} 35. Bc2 {[%clk
00:11:08]} {[%emt 00:03:46]} g5 {[%clk 00:12:39]} {[%emt 00:02:07]} 36. Bf5
{[%clk 00:07:06]} {[%emt 00:04:32]} Ke7 {[%clk 00:12:45]} {[%emt 00:00:24]} 37.
Rb1 {[%clk 00:06:39]} {[%emt 00:00:58]} b6 {[%clk 00:11:23]} {[%emt 00:01:53]}
38. Ke2 {[%clk 00:04:51]} {[%emt 00:02:16]} Kf6 {[%clk 00:11:09]} {[%emt
00:00:44]} 39. e4 {[%clk 00:04:24]} {[%emt 00:00:57]} Rh4 {[%clk 00:10:30]}
{[%emt 00:01:09]} 40. Ke3 {[%clk 00:03:18]} {[%emt 00:01:36]} h6 {[%clk
00:08:24]} {[%emt 00:02:37]} 41. Bg4 {[%clk 00:01:34]} {[%emt 00:02:13]} h5
{[%clk 00:08:41]} {[%emt 00:00:14]} 42. e5+ {[%clk 00:29:03]} {[%emt 00:03:01]}
Kg6 {[%clk 00:33:30]} {[%emt 00:05:39]} 43. Bd7 {[%clk 00:26:05]} {[%emt
00:03:29]} c2 {[%clk 00:30:52]} {[%emt 00:03:09]} 44. Rc1 {[%clk 00:21:53]}
{[%emt 00:04:42]} Bc3 {[%clk 00:27:11]} {[%emt 00:04:11]} 45. d5 {[%clk
00:12:34]} {[%emt 00:09:49]} Bxe5 {[%clk 00:22:15]} {[%emt 00:05:25]} 46. Rxc2
{[%clk 00:12:54]} {[%emt 00:00:10]} Bd4+ {[%clk 00:21:55]} {[%emt 00:00:51]} 47.
Ke2 {[%clk 00:07:19]} {[%emt 00:06:05]} Kf6 {[%clk 00:22:14]} {[%emt 00:00:10]}
48. Rc6+ {[%clk 00:06:52]} {[%emt 00:00:59]} Ke5 {[%clk 00:22:18]} {[%emt
00:00:24]} 49. Rg6 {[%clk 00:06:41]} {[%emt 00:00:42]} Kxd5 {[%clk 00:21:49]}
{[%emt 00:00:59]} 50. Rxg5+ {[%clk 00:06:36]} {[%emt 00:00:35]} Kd6 {[%clk
00:21:10]} {[%emt 00:01:09]} 51. Be8 {[%clk 00:06:12]} {[%emt 00:00:53]} Rxh3
{[%clk 00:20:51]} {[%emt 00:00:49]} 52. Bxh5 {[%clk 00:06:34]} {[%emt
00:00:09]} Rh1 {[%clk 00:15:19]} {[%emt 00:06:01]} 53. f4 {[%clk 00:04:07]}
{[%emt 00:02:58]} Ra1 {[%clk 00:14:33]} {[%emt 00:01:17]} 54. Be8 {[%clk
00:04:05]} {[%emt 00:00:30]} Ra3 {[%clk 00:14:30]} {[%emt 00:00:33]} 55. Bb5
{[%clk 00:03:56]} {[%emt 00:00:40]} Re3+ {[%clk 00:14:43]} {[%emt 00:00:17]} 56.
Kd2 {[%clk 00:04:18]} {[%emt 00:00:07]} Rf3 {[%clk 00:13:14]} {[%emt 00:02:00]}
57. Rg6+ {[%clk 00:04:41]} {[%emt 00:00:06]} Ke7 {[%clk 00:11:41]} {[%emt
00:02:03]} 58. Rg4 {[%clk 00:05:04]} {[%emt 00:00:07]} Kf6 {[%clk 00:09:55]}
{[%emt 00:02:17]} 59. Bd3 {[%clk 00:04:41]} {[%emt 00:00:53]} Rf2+ {[%clk
00:09:26]} {[%emt 00:00:59]} 60. Be2 {[%clk 00:04:09]} {[%emt 00:01:02]} Kf5
{[%clk 00:09:08]} {[%emt 00:00:48]} 61. Rg8 {[%clk 00:04:27]} {[%emt 00:00:11]}
Rxf4 {[%clk 00:08:56]} {[%emt 00:00:42]} 1/2-1/2

[ePGN "0.1;DGT LiveChess/2.1"]

[Event "Open International Liffre 2019"]
[Site "Liffre"]
[Date "2019.10.21"]
[Round "4.4"]
[White "Bailet, Pierre"]
[Black "Naumkin, Igor"]
[Result "1/2-1/2"]
[TimeControl "1h30 + 30s/coup + 30 min /40 Coup"]
[WhiteTitle "IM"]
[BlackTitle "GM"]
[WhiteElo "2493"]
[BlackElo "2385"]

1. Nf3 {[%clk 01:30:38]} {[%emt 00:00:21]} Nf6 {[%clk 01:21:06]} {[%emt
00:09:55]} 2. g3 {[%clk 01:30:30]} {[%emt 00:00:38]} d5 {[%clk 01:21:24]}
{[%emt 00:00:11]} 3. Bg2 {[%clk 01:30:38]} {[%emt 00:00:22]} c5 {[%clk
01:21:20]} {[%emt 00:00:35]} 4. O-O {[%clk 01:30:38]} {[%emt 00:00:28]} e6
{[%clk 01:20:28]} {[%emt 00:01:23]} 5. d3 {[%clk 01:28:03]} {[%emt 00:03:06]}
Nc6 {[%clk 01:19:53]} {[%emt 00:01:05]} 6. Nbd2 {[%clk 01:26:44]} {[%emt
00:01:48]} Be7 {[%clk 01:20:05]} {[%emt 00:00:19]} 7. e4 {[%clk 01:26:52]}
{[%emt 00:00:22]} O-O {[%clk 01:19:45]} {[%emt 00:00:50]} 8. Re1 {[%clk
01:26:48]} {[%emt 00:00:33]} b5 {[%clk 01:18:36]} {[%emt 00:01:39]} 9. exd5
{[%clk 01:24:33]} {[%emt 00:02:46]} exd5 {[%clk 01:12:22]} {[%emt 00:06:44]} 10.
a4 {[%clk 01:21:30]} {[%emt 00:03:32]} b4 {[%clk 01:11:37]} {[%emt 00:01:15]}
11. d4 {[%clk 01:21:04]} {[%emt 00:00:56]} Bg4 {[%clk 01:08:37]} {[%emt
00:03:31]} 12. h3 {[%clk 01:12:44]} {[%emt 00:08:49]} Bh5 {[%clk 01:08:07]}
{[%emt 00:01:00]} 13. dxc5 {[%clk 01:10:01]} {[%emt 00:03:14]} Bxc5 {[%clk
01:04:04]} {[%emt 00:04:33]} 14. Nb3 {[%clk 01:08:56]} {[%emt 00:01:34]} Bb6
{[%clk 01:00:45]} {[%emt 00:03:49]} 15. Be3 {[%clk 00:54:32]} {[%emt 00:14:54]}
Rc8 {[%clk 00:50:49]} {[%emt 00:10:28]} 16. Bxb6 {[%clk 00:50:31]} {[%emt
00:04:29]} Qxb6 {[%clk 00:50:43]} {[%emt 00:00:36]} 17. a5 {[%clk 00:50:36]}
{[%emt 00:00:26]} Qc7 {[%clk 00:49:45]} {[%emt 00:01:27]} 18. Qd2 {[%clk
00:42:21]} {[%emt 00:08:46]} Rfd8 {[%clk 00:46:06]} {[%emt 00:04:08]} 19. Nfd4
{[%clk 00:40:24]} {[%emt 00:02:28]} Ne4 {[%emt 00:07:20]} 20. Bxe4 {[%clk
00:32:28]} {[%emt 00:06:17]} dxe4 {[%clk 00:39:21]} {[%emt 00:02:33]} 21. Rxe4
{[%clk 00:32:42]} {[%emt 00:00:17]} Bf3 {[%clk 00:30:32]} {[%emt 00:09:18]} 22.
Re3 {[%clk 00:27:40]} {[%emt 00:05:33]} Bd5 {[%clk 00:23:51]} {[%emt 00:07:10]}
23. Rae1 {[%clk 00:24:55]} {[%emt 00:03:15]} h6 {[%clk 00:22:21]} {[%emt
00:02:00]} 24. Nxc6 {[%clk 00:22:47]} {[%emt 00:02:39]} Qxc6 {[%clk 00:17:12]}
{[%emt 00:05:39]} 25. Nd4 {[%clk 00:20:18]} {[%emt 00:02:59]} Qc5 {[%clk
00:14:24]} {[%emt 00:03:17]} 26. Re5 {[%clk 00:14:22]} {[%emt 00:06:26]} f6
{[%clk 00:10:38]} {[%emt 00:04:16]} 27. Re7 {[%clk 00:14:02]} {[%emt 00:00:51]}
Bf7 {[%clk 00:09:01]} {[%emt 00:02:06]} 28. c3 {[%clk 00:11:47]} {[%emt
00:02:46]} bxc3 {[%clk 00:07:52]} {[%emt 00:01:39]} 29. bxc3 {[%clk 00:12:12]}
{[%emt 00:00:06]} Qxa5 {[%clk 00:07:26]} {[%emt 00:00:56]} 30. Qf4 {[%clk
00:09:39]} {[%emt 00:03:02]} Rxc3 {[%clk 00:03:16]} {[%emt 00:04:40]} 31. Nf5
{[%clk 00:09:09]} {[%emt 00:01:00]} Rc4 {[%clk 00:01:19]} {[%emt 00:02:27]} 32.
Nxh6+ {[%clk 00:08:11]} {[%emt 00:01:28]} gxh6 {[%clk 00:01:41]} {[%emt
00:00:07]} 33. Qxf6 {[%clk 00:08:08]} {[%emt 00:00:33]} Rf8 {[%clk 00:01:47]}
{[%emt 00:00:25]} 34. Qxh6 {[%clk 00:04:37]} {[%emt 00:04:01]} Qb6 {[%clk
00:01:21]} {[%emt 00:00:55]} 35. R1e6 {[%clk 00:01:35]} {[%emt 00:03:32]} Qb1+
{[%clk 00:01:29]} {[%emt 00:00:22]} 36. Kg2 {[%clk 00:01:36]} {[%emt 00:00:29]}
Qh7 {[%clk 00:01:20]} {[%emt 00:00:40]} 37. Qxh7+ {[%clk 00:01:15]} {[%emt
00:00:51]} Kxh7 {[%clk 00:01:48]} {[%emt 00:00:02]} 38. Rxa7 {[%clk 00:01:28]}
{[%emt 00:00:17]} Kg8 {[%clk 00:01:40]} {[%emt 00:00:37]} 39. Rd6 {[%clk
00:01:02]} {[%emt 00:00:56]} Rc2 {[%clk 00:01:27]} {[%emt 00:00:44]} 40. g4
{[%clk 00:00:59]} {[%emt 00:00:33]} Be8 {[%clk 00:01:10]} {[%emt 00:00:46]} 41.
Kg3 {[%clk 00:00:56]} {[%emt 00:00:33]} Rcxf2 {[%clk 00:00:56]} {[%emt
00:00:45]} 42. Rd8 {[%clk 00:28:54]} {[%emt 00:02:31]} R2f3+ {[%clk 00:30:43]}
{[%emt 00:00:43]} 43. Kh4 {[%clk 00:23:33]} {[%emt 00:05:52]} Re3 {[%clk
00:29:56]} {[%emt 00:01:16]} 44. Kg5 {[%clk 00:21:00]} {[%emt 00:03:03]} Re5+
{[%clk 00:28:48]} {[%emt 00:01:38]} 45. Kh4 {[%clk 00:21:23]} {[%emt 00:00:07]}
Rf3 {[%clk 00:27:10]} {[%emt 00:02:08]} 46. Rd2 {[%clk 00:19:44]} {[%emt
00:02:09]} Ree3 {[%clk 00:25:26]} {[%emt 00:02:14]} 47. Rh2 {[%clk 00:20:12]}
Bf7 {[%clk 00:24:42]} {[%emt 00:01:16]} 48. Ra5 {[%clk 00:19:53]} {[%emt
00:00:51]} Kg7 {[%clk 00:22:30]} {[%emt 00:02:40]} 49. Kg5 {[%clk 00:18:19]}
{[%emt 00:02:04]} Re6 {[%clk 00:22:20]} {[%emt 00:00:40]} 50. Rf5 {[%clk
00:17:54]} {[%emt 00:00:55]} Rg6+ {[%clk 00:21:09]} {[%emt 00:01:42]} 51. Kh4
{[%clk 00:18:21]} Rxf5 {[%clk 00:20:07]} {[%emt 00:01:35]} 52. gxf5 {[%clk
00:18:47]} {[%emt 00:00:04]} Rh6 {[%clk 00:19:11]} {[%emt 00:01:25]} 53. Kg4
{[%clk 00:18:44]} {[%emt 00:00:33]} Kf6 {[%clk 00:19:12]} {[%emt 00:00:29]} 54.
Rb2 {[%clk 00:18:56]} {[%emt 00:00:19]} Rh8 {[%clk 00:18:50]} {[%emt 00:00:51]}
55. h4 {[%clk 00:17:47]} {[%emt 00:01:39]} Bd5 {[%clk 00:16:51]} {[%emt
00:02:28]} 56. Rb6+ {[%clk 00:16:43]} {[%emt 00:01:35]} Ke5 {[%clk 00:17:01]}
{[%emt 00:00:20]} 57. h5 {[%clk 00:16:33]} {[%emt 00:00:41]} Rf8 {[%clk
00:15:17]} {[%emt 00:02:13]} 58. h6 {[%clk 00:14:46]} {[%emt 00:02:18]} Rxf5
{[%clk 00:14:05]} {[%emt 00:01:42]} 59. h7 {[%clk 00:13:45]} {[%emt 00:01:30]}
Rf8 {[%clk 00:13:49]} {[%emt 00:00:45]} 60. Kg5 {[%clk 00:13:51]} {[%emt
00:00:25]} Be4 {[%clk 00:10:11]} {[%emt 00:04:07]} 61. Kh6 {[%clk 00:14:02]}
{[%emt 00:00:19]} Rh8 {[%clk 00:09:40]} {[%emt 00:01:02]} 62. Rb7 {[%clk
00:13:08]} {[%emt 00:01:25]} Bxb7 {[%clk 00:09:01]} {[%emt 00:01:09]} 63. Kg7
{[%clk 00:13:31]} {[%emt 00:00:07]} Rxh7+ {[%clk 00:09:23]} {[%emt 00:00:07]}
1/2-1/2

[ePGN "0.1;DGT LiveChess/2.1"]

[Event "Open International Liffre 2019"]
[Site "Liffre"]
[Date "2019.10.22"]
[Round "5.1"]
[White "Nikolov, Momchil"]
[Black "Le Marec, Simon"]
[Result "1-0"]
[TimeControl "1h30 + 30s/coup + 30 min /40 Coup"]
[WhiteTitle "GM"]
[WhiteElo "2557"]
[BlackElo "2228"]

1. d4 {[%clk 01:30:56]} {[%emt 00:00:03]} d5 {[%clk 01:30:37]} {[%emt
00:00:24]} 2. c4 {[%clk 01:31:17]} {[%emt 00:00:08]} dxc4 {[%clk 01:30:59]}
{[%emt 00:00:08]} 3. Nf3 {[%clk 01:31:36]} {[%emt 00:00:12]} Nf6 {[%clk
01:31:20]} {[%emt 00:00:09]} 4. e3 {[%clk 01:31:38]} {[%emt 00:00:27]} e6
{[%clk 01:31:33]} {[%emt 00:00:18]} 5. Bxc4 {[%clk 01:31:54]} {[%emt 00:00:14]}
a6 {[%clk 01:31:58]} {[%emt 00:00:05]} 6. O-O {[%clk 01:31:54]} {[%emt
00:00:28]} b5 {[%clk 01:32:24]} {[%emt 00:00:06]} 7. Bd3 {[%clk 01:27:25]}
{[%emt 00:04:58]} Bb7 {[%clk 01:32:48]} {[%emt 00:00:07]} 8. a4 {[%clk
01:26:37]} {[%emt 00:01:18]} b4 {[%clk 01:33:13]} {[%emt 00:00:05]} 9. Re1
{[%clk 01:19:44]} {[%emt 00:07:22]} c5 {[%clk 01:31:51]} {[%emt 00:01:53]} 10.
e4 {[%clk 01:19:22]} {[%emt 00:00:52]} cxd4 {[%clk 01:30:17]} {[%emt 00:02:03]}
11. e5 {[%clk 01:19:15]} {[%emt 00:00:37]} Nfd7 {[%clk 01:30:07]} {[%emt
00:00:40]} 12. Bg5 {[%clk 01:07:07]} {[%emt 00:12:39]} Be7 {[%clk 01:23:17]}
{[%emt 00:07:19]} 13. Bxe7 {[%clk 01:06:33]} {[%emt 00:01:05]} Qxe7 {[%clk
01:23:41]} {[%emt 00:00:06]} 14. Nbd2 {[%clk 01:04:16]} {[%emt 00:02:47]} Nc6
{[%clk 01:07:52]} {[%emt 00:16:19]} 15. Rc1 {[%clk 00:57:09]} {[%emt 00:07:36]}
O-O {[%clk 01:00:06]} {[%emt 00:08:16]} 16. Nb3 {[%clk 00:55:49]} {[%emt
00:01:51]} Rac8 {[%clk 00:46:35]} {[%emt 00:14:00]} 17. Qe2 {[%clk 00:53:05]}
{[%emt 00:03:14]} Ncb8 {[%clk 00:43:39]} {[%emt 00:03:27]} 18. Be4 {[%clk
00:49:50]} {[%emt 00:03:44]} Bxe4 {[%clk 00:42:11]} {[%emt 00:01:58]} 19. Qxe4
{[%clk 00:50:12]} {[%emt 00:00:08]} Nb6 {[%clk 00:37:17]} {[%emt 00:05:24]} 20.
a5 {[%clk 00:45:28]} {[%emt 00:05:15]} Nd5 {[%clk 00:37:42]} {[%emt 00:00:05]}
21. Nfxd4 {[%clk 00:44:17]} {[%emt 00:01:40]} Rfd8 {[%clk 00:31:23]} {[%emt
00:06:49]} 22. g3 {[%clk 00:42:22]} {[%emt 00:02:25]} Qd7 {[%clk 00:27:23]}
{[%emt 00:04:31]} 23. Nc5 {[%clk 00:38:23]} {[%emt 00:04:28]} Qa7 {[%clk
00:27:24]} {[%emt 00:00:30]} 24. Ncxe6 {[%clk 00:32:13]} {[%emt 00:06:40]} fxe6
{[%clk 00:24:25]} {[%emt 00:03:28]} 25. Nxe6 {[%clk 00:32:33]} {[%emt
00:00:09]} Ne7 {[%clk 00:20:07]} {[%emt 00:04:49]} 26. Nxd8 {[%clk 00:29:48]}
{[%emt 00:03:15]} Rxd8 {[%clk 00:20:34]} {[%emt 00:00:04]} 27. Qxb4 {[%clk
00:29:17]} {[%emt 00:01:01]} Rf8 {[%clk 00:16:46]} {[%emt 00:04:17]} 28. Qc5
{[%clk 00:22:17]} {[%emt 00:07:30]} Qxc5 {[%clk 00:16:43]} {[%emt 00:00:33]} 29.
Rxc5 {[%clk 00:22:43]} {[%emt 00:00:03]} Nbc6 {[%clk 00:16:56]} {[%emt
00:00:17]} 30. Rd1 {[%clk 00:20:53]} {[%emt 00:02:21]} Rf5 {[%clk 00:13:26]}
{[%emt 00:04:00]} 31. f4 {[%clk 00:20:11]} {[%emt 00:01:12]} g5 {[%clk
00:13:51]} {[%emt 00:00:06]} 32. Rd6 {[%clk 00:19:08]} {[%emt 00:01:32]} gxf4
{[%clk 00:14:15]} {[%emt 00:00:07]} 33. Rcxc6 {[%clk 00:14:38]} {[%emt
00:05:00]} Nxc6 {[%clk 00:14:39]} {[%emt 00:00:05]} 34. Rxc6 {[%clk 00:15:03]}
{[%emt 00:00:05]} Rxe5 {[%clk 00:15:05]} {[%emt 00:00:04]} 35. Rxa6 {[%clk
00:14:53]} {[%emt 00:00:40]} f3 {[%clk 00:15:31]} {[%emt 00:00:05]} 36. b4
{[%clk 00:14:17]} {[%emt 00:01:06]} 1-0

[ePGN "0.1;DGT LiveChess/2.1"]

[Event "Open International Liffre 2019"]
[Site "Liffre"]
[Date "2019.10.22"]
[Round "5.2"]
[White "Enchev, Ivajlo"]
[Black "Nortier, Julien"]
[Result "1-0"]
[TimeControl "1h30 + 30s/coup + 30 min /40 Coup"]
[WhiteTitle "GM"]
[WhiteElo "2488"]
[BlackElo "2037"]

1. d4 {[%clk 01:30:55]} {[%emt 00:00:03]} Nf6 {[%clk 01:30:58]} {[%emt
00:00:03]} 2. c4 {[%clk 01:31:12]} {[%emt 00:00:13]} c5 {[%clk 01:31:26]}
{[%emt 00:00:03]} 3. d5 {[%clk 01:31:36]} {[%emt 00:00:06]} e6 {[%clk
01:31:53]} {[%emt 00:00:03]} 4. Nc3 {[%clk 01:31:57]} {[%emt 00:00:08]} exd5
{[%clk 01:32:20]} {[%emt 00:00:03]} 5. cxd5 {[%clk 01:32:21]} {[%emt 00:00:06]}
d6 {[%clk 01:32:47]} {[%emt 00:00:04]} 6. Nf3 {[%clk 01:32:32]} {[%emt
00:00:19]} g6 {[%clk 01:33:09]} {[%emt 00:00:07]} 7. Bf4 {[%clk 01:32:45]}
{[%emt 00:00:17]} a6 {[%clk 01:31:26]} {[%emt 00:02:14]} 8. a4 {[%clk
01:33:02]} {[%emt 00:00:12]} Bg7 {[%clk 01:31:25]} {[%emt 00:00:32]} 9. h3
{[%clk 01:32:59]} {[%emt 00:00:33]} O-O {[%clk 01:31:40]} {[%emt 00:00:16]} 10.
e3 {[%clk 01:33:14]} {[%emt 00:00:13]} Qe7 {[%clk 01:29:57]} {[%emt 00:02:13]}
11. Be2 {[%clk 01:28:44]} {[%emt 00:05:00]} Nbd7 {[%clk 01:29:50]} {[%emt
00:00:39]} 12. O-O {[%clk 01:28:46]} {[%emt 00:00:26]} b6 {[%clk 01:29:12]}
{[%emt 00:01:09]} 13. Nd2 {[%clk 01:27:47]} {[%emt 00:01:28]} Ne8 {[%clk
01:28:53]} {[%emt 00:00:50]} 14. Nc4 {[%clk 01:25:06]} {[%emt 00:03:11]} Rb8
{[%clk 01:28:50]} {[%emt 00:00:34]} 15. Qd2 {[%clk 01:23:51]} {[%emt 00:01:44]}
Ne5 {[%clk 01:27:51]} {[%emt 00:01:29]} 16. Bxe5 {[%clk 01:22:41]} {[%emt
00:01:40]} Bxe5 {[%clk 01:27:58]} {[%emt 00:00:23]} 17. Nxe5 {[%clk 01:22:35]}
{[%emt 00:00:35]} Qxe5 {[%clk 01:28:03]} {[%emt 00:00:25]} 18. Rab1 {[%clk
01:21:01]} {[%emt 00:02:04]} Bf5 {[%clk 01:22:30]} {[%emt 00:06:04]} 19. Rbe1
{[%clk 01:20:58]} {[%emt 00:00:33]} Nc7 {[%clk 01:22:01]} {[%emt 00:00:59]} 20.
f4 {[%clk 01:19:49]} {[%emt 00:01:38]} Qg7 {[%clk 01:21:14]} {[%emt 00:01:18]}
21. Kh1 {[%clk 01:17:52]} {[%emt 00:02:26]} Bd7 {[%clk 01:14:32]} {[%emt
00:07:13]} 22. e4 {[%clk 01:16:37]} {[%emt 00:01:45]} f5 {[%clk 01:13:40]}
{[%emt 00:01:21]} 23. e5 {[%clk 01:15:56]} {[%emt 00:01:11]} dxe5 {[%clk
01:13:11]} {[%emt 00:01:00]} 24. fxe5 {[%clk 01:16:02]} {[%emt 00:00:24]} Qxe5
{[%clk 01:12:13]} {[%emt 00:01:28]} 25. d6 {[%clk 01:14:28]} {[%emt 00:02:03]}
Ne6 {[%clk 01:11:15]} {[%emt 00:01:29]} 26. Bc4 {[%clk 01:14:01]} {[%emt
00:00:55]} Qf6 {[%clk 01:09:01]} {[%emt 00:02:45]} 27. Nd5 {[%clk 01:14:00]}
{[%emt 00:00:31]} Qf7 {[%clk 01:01:54]} {[%emt 00:07:37]} 28. Ne7+ {[%clk
01:11:55]} {[%emt 00:02:36]} Kg7 {[%clk 01:00:18]} {[%emt 00:02:05]} 29. Bxe6
{[%clk 01:11:47]} {[%emt 00:00:39]} 1-0

[ePGN "0.1;DGT LiveChess/2.1"]

[Event "Open International Liffre 2019"]
[Site "Liffre"]
[Date "2019.10.22"]
[Round "5.3"]
[White "Brault, Gabriel"]
[Black "Guilleux, Fabien"]
[Result "0-1"]
[TimeControl "1h30 + 30s/coup + 30 min /40 Coup"]
[BlackTitle "IM"]
[WhiteElo "1952"]
[BlackElo "2433"]

1. e4 {[%clk 01:30:57]} {[%emt 00:00:04]} c5 {[%clk 01:30:46]} {[%emt
00:00:14]} 2. Be2 {[%clk 01:31:20]} {[%emt 00:00:07]} Nc6 {[%clk 01:30:26]}
{[%emt 00:00:50]} 3. f4 {[%clk 01:31:40]} {[%emt 00:00:09]} d5 {[%clk
01:30:01]} {[%emt 00:00:55]} 4. d3 {[%clk 01:32:00]} {[%emt 00:00:10]} e6
{[%clk 01:29:39]} {[%emt 00:00:52]} 5. Nf3 {[%clk 01:31:12]} {[%emt 00:01:18]}
Bd6 {[%clk 01:29:38]} {[%emt 00:00:30]} 6. c3 {[%clk 01:21:03]} {[%emt
00:10:40]} f6 {[%clk 01:27:58]} {[%emt 00:02:10]} 7. Be3 {[%clk 01:09:34]}
{[%emt 00:11:59]} Nge7 {[%clk 01:27:07]} {[%emt 00:01:21]} 8. O-O {[%clk
01:08:40]} {[%emt 00:01:25]} O-O {[%clk 01:26:30]} {[%emt 00:01:06]} 9. g4
{[%clk 01:03:22]} {[%emt 00:05:48]} Ng6 {[%clk 01:16:20]} {[%emt 00:10:40]} 10.
Ne1 {[%clk 00:59:58]} {[%emt 00:03:54]} b6 {[%clk 01:06:51]} {[%emt 00:10:00]}
11. Ng2 {[%clk 00:58:37]} {[%emt 00:01:50]} d4 {[%clk 00:47:33]} {[%emt
00:19:49]} 12. cxd4 cxd4 {[%clk 00:46:36]} 13. Bd2 {[%clk 00:51:05]} {[%emt
00:00:58]} f5 {[%clk 00:46:06]} {[%emt 00:01:01]} 14. e5 {[%clk 00:48:35]}
{[%emt 00:03:00]} Bc5 {[%clk 00:43:34]} {[%emt 00:03:02]} 15. Bf3 {[%clk
00:47:03]} {[%emt 00:02:02]} Bb7 {[%clk 00:36:52]} {[%emt 00:07:12]} 16. Qb3
{[%clk 00:45:41]} {[%emt 00:01:52]} Qd7 {[%clk 00:34:08]} {[%emt 00:03:14]} 17.
gxf5 {[%clk 00:45:58]} {[%emt 00:00:13]} Rxf5 {[%clk 00:34:26]} {[%emt
00:00:11]} 18. Bg4 {[%clk 00:45:11]} {[%emt 00:01:18]} Nce7 {[%clk 00:33:47]}
{[%emt 00:01:08]} 19. Bxf5 {[%clk 00:30:45]} {[%emt 00:14:57]} Nxf5 {[%clk
00:34:08]} {[%emt 00:00:09]} 20. Kf2 {[%clk 00:27:30]} {[%emt 00:03:44]} Rf8
{[%clk 00:31:42]} {[%emt 00:02:57]} 21. Qd1 {[%clk 00:12:08]} {[%emt 00:15:51]}
Ne3 {[%clk 00:23:41]} {[%emt 00:08:32]} 22. Nxe3 {[%clk 00:11:24]} {[%emt
00:01:14]} dxe3+ {[%clk 00:23:27]} {[%emt 00:00:44]} 23. Bxe3 {[%clk 00:11:39]}
{[%emt 00:00:15]} Rxf4+ {[%clk 00:21:44]} {[%emt 00:02:13]} 24. Ke2 {[%clk
00:11:31]} {[%emt 00:00:38]} Bxe3 {[%clk 00:22:02]} {[%emt 00:00:12]} 0-1

[ePGN "0.1;DGT LiveChess/2.1"]